{"text_format":"1","workbook":"xlsx","n_sheets":1,"sheets":["جدول سير القضايا"],"not_rendered":{"charts":0,"images":0,"macros":1,"external_links":0,"defined_names":0,"comments":0,"pivot_tables":0},"unopened":[],"bounds":{"document_bytes":16777216,"sheet_cells":100000,"rows_first":2000,"rows_last":500,"rows_between":2000,"halvings":0,"cell_chars":16384,"cell_head_chars":4096},"cells_cut":0,"cells_raw":0,"read":"whole","date_system":"1900"}

{"sheet":"جدول سير القضايا","index":0,"n_rows":1000,"n_cols":27,"rows_kept":1000,"cut":false,"hidden":false,"merged":[]}
["      رقم القيد","    تاريخ الإستلام","         اليوم","     نوع القضية","                    جهة القضية","    تاريخ التصدير","         اليوم","      نوع القرار","مدة بقائها في الدائرة بالأيام","  الإجراء (بدون) بالأيام",null,null,null,null,null,null,null,null,null,null,null,null,null,null,null,"  مدة أيام العمل","     تاريخ اليوم"]
[409001000,"2019-05-22",{"$f":"IF(B2=\"\",\"\",TEXT(B2,\"dddd\"))","v":"الأربعاء"},"حضانة","محكمة الأحوال الشخصية بمكة المكرمة","2019-05-22",{"$f":"IF(F2=\"\",\"\",TEXT(F2,\"dddd\"))","v":"الأربعاء"},"قرار إلتماس",{"$f":"IF(OR(B2=\"\",F2=\"\"),\"\",DATEDIF(B2,F2,\"d\"))","v":0},{"$f":"IF(B2=\"\",\"\",DATEDIF($B2,$AA$2,\"d\"))","v":0},null,null,null,null,null,null,null,null,null,null,null,null,null,null,null,10,{"$f":"TODAY()","v":"2019-05-22"}]
[null,null,{"$f":"IF(B3=\"\",\"\",TEXT(B3,\"dddd\"))","v":""},null,null,null,{"$f":"IF(F3=\"\",\"\",TEXT(F3,\"dddd\"))","v":""},null,"",{"$f":"IF(B3=\"\",\"\",DATEDIF($B3,$AA$2,\"d\"))","v":""}]
[null,null,"",null,null,null,{"$f":"IF(F4=\"\",\"\",TEXT(F4,\"dddd\"))","v":""},null,{"$f":"IF(OR(B4=\"\",F4=\"\"),\"\",DATEDIF(B4,F4,\"d\"))","v":""},""]
[null,null,"",null,null,null,"",null,{"$f":"IF(OR(B5=\"\",F5=\"\"),\"\",DATEDIF(B5,F5,\"d\"))","v":""},""]
[null,null,"",null,null,null,"",null,"",""]
[null,null,"",null,null,null,"",null,"",""]
[null,null,"",null,null,null,"",null,"",""]
[null,null,"",null,null,null,"",null,"",""]
[null,null,"",null,null,null,"",null,"",""]
[null,null,"",null,null,null,"",null,"",""]
[null,null,"",null,null,null,"",null,"",""]
[null,null,"",null,null,null,"",null,"",""]
[null,null,"",null,null,null,"",null,"",""]
[null,null,"",null,null,null,"",null,"",""]
[null,null,"",null,null,null,"",null,"",""]
[null,null,"",null,null,null,"",null,"",""]
[null,null,"",null,null,null,"",null,"",""]
[null,null,"",null,null,null,"",null,"",""]
[null,null,"",null,null,null,"",null,"",""]
[null,null,"",null,null,null,"",null,"",""]
[null,null,"",null,null,null,"",null,"",""]
[null,null,"",null,null,null,"",null,"",""]
[null,null,"",null,null,null,"",null,"",""]
[null,null,"",null,null,null,"",null,"",""]
[null,null,"",null,null,null,"",null,"",""]
[null,null,"",null,null,null,"",null,"",""]
[null,null,"",null,null,null,"",null,"",""]
[null,null,"",null,null,null,"",null,"",""]
[null,null,"",null,null,null,"",null,"",""]
[null,null,"",null,null,null,"",null,"",""]
[null,null,"",null,null,null,"",null,"",""]
[null,null,"",null,null,null,"",null,"",""]
[null,null,"",null,null,null,"",null,"",""]
[null,null,"",null,null,null,"",null,"",""]
[null,null,"",null,null,null,"",null,"",""]
[null,null,"",null,null,null,"",null,"",""]
[null,null,"",null,null,null,"",null,"",""]
[null,null,"",null,null,null,"",null,"",""]
[null,null,"",null,null,null,"",null,"",""]
[null,null,"",null,null,null,"",null,"",""]
[null,null,"",null,null,null,"",null,"",""]
[null,null,"",null,null,null,"",null,"",""]
[null,null,"",null,null,null,"",null,"",""]
[null,null,"",null,null,null,"",null,"",""]
[null,null,"",null,null,null,"",null,"",""]
[null,null,"",null,null,null,"",null,"",""]
[null,null,"",null,null,null,"",null,"",""]
[null,null,"",null,null,null,"",null,"",""]
[null,null,"",null,null,null,"",null,"",""]
[null,null,"",null,null,null,"",null,"",""]
[null,null,"",null,null,null,"",null,"",""]
[null,null,"",null,null,null,"",null,"",""]
[null,null,"",null,null,null,"",null,"",""]
[null,null,"",null,null,null,"",null,"",""]
[null,null,"",null,null,null,"",null,"",""]
[null,null,"",null,null,null,"",null,"",""]
[null,null,"",null,null,null,"",null,"",""]
[null,null,"",null,null,null,"",null,"",""]
[null,null,"",null,null,null,"",null,"",""]
[null,null,"",null,null,null,"",null,"",""]
[null,null,"",null,null,null,"",null,"",""]
[null,null,"",null,null,null,"",null,"",""]
[null,null,"",null,null,null,"",null,"",""]
[null,null,"",null,null,null,"",null,"",""]
[null,null,"",null,null,null,"",null,"",""]
[null,null,{"$f":"IF(B67=\"\",\"\",TEXT(B67,\"dddd\"))","v":""},null,null,null,"",null,"",{"$f":"IF(B67=\"\",\"\",DATEDIF($B67,$AA$2,\"d\"))","v":""}]
[null,null,"",null,null,null,{"$f":"IF(F68=\"\",\"\",TEXT(F68,\"dddd\"))","v":""},null,"",""]
[null,null,"",null,null,null,"",null,{"$f":"IF(OR(B69=\"\",F69=\"\"),\"\",DATEDIF(B69,F69,\"d\"))","v":""},""]
[null,null,"",null,null,null,"",null,"",""]
[null,null,"",null,null,null,"",null,"",""]
[null,null,"",null,null,null,"",null,"",""]
[null,null,"",null,null,null,"",null,"",""]
[null,null,"",null,null,null,"",null,"",""]
[null,null,"",null,null,null,"",null,"",""]
[null,null,"",null,null,null,"",null,"",""]
[null,null,"",null,null,null,"",null,"",""]
[null,null,"",null,null,null,"",null,"",""]
[null,null,"",null,null,null,"",null,"",""]
[null,null,"",null,null,null,"",null,"",""]
[null,null,"",null,null,null,"",null,"",""]
[null,null,"",null,null,null,"",null,"",""]
[null,null,"",null,null,null,"",null,"",""]
[null,null,"",null,null,null,"",null,"",""]
[null,null,"",null,null,null,"",null,"",""]
[null,null,"",null,null,null,"",null,"",""]
[null,null,"",null,null,null,"",null,"",""]
[null,null,"",null,null,null,"",null,"",""]
[null,null,"",null,null,null,"",null,"",""]
[null,null,"",null,null,null,"",null,"",""]
[null,null,"",null,null,null,"",null,"",""]
[null,null,"",null,null,null,"",null,"",""]
[null,null,"",null,null,null,"",null,"",""]
[null,null,"",null,null,null,"",null,"",""]
[null,null,"",null,null,null,"",null,"",""]
[null,null,"",null,null,null,"",null,"",""]
[null,null,"",null,null,null,"",null,"",""]
[null,null,"",null,null,null,"",null,"",""]
[null,null,"",null,null,null,"",null,"",""]
[null,null,"",null,null,null,"",null,"",""]
[null,null,"",null,null,null,"",null,"",""]
[null,null,"",null,null,null,"",null,"",""]
[null,null,"",null,null,null,"",null,"",""]
[null,null,"",null,null,null,"",null,"",""]
[null,null,"",null,null,null,"",null,"",""]
[null,null,"",null,null,null,"",null,"",""]
[null,null,"",null,null,null,"",null,"",""]
[null,null,"",null,null,null,"",null,"",""]
[null,null,"",null,null,null,"",null,"",""]
[null,null,"",null,null,null,"",null,"",""]
[null,null,"",null,null,null,"",null,"",""]
[null,null,"",null,null,null,"",null,"",""]
[null,null,"",null,null,null,"",null,"",""]
[null,null,"",null,null,null,"",null,"",""]
[null,null,"",null,null,null,"",null,"",""]
[null,null,"",null,null,null,"",null,"",""]
[null,null,"",null,null,null,"",null,"",""]
[null,null,"",null,null,null,"",null,"",""]
[null,null,"",null,null,null,"",null,"",""]
[null,null,"",null,null,null,"",null,"",""]
[null,null,"",null,null,null,"",null,"",""]
[null,null,"",null,null,null,"",null,"",""]
[null,null,"",null,null,null,"",null,"",""]
[null,null,"",null,null,null,"",null,"",""]
[null,null,"",null,null,null,"",null,"",""]
[null,null,"",null,null,null,"",null,"",""]
[null,null,"",null,null,null,"",null,"",""]
[null,null,"",null,null,null,"",null,"",""]
[null,null,"",null,null,null,"",null,"",""]
[null,null,"",null,null,null,"",null,"",""]
[null,null,{"$f":"IF(B131=\"\",\"\",TEXT(B131,\"dddd\"))","v":""},null,null,null,"",null,"",{"$f":"IF(B131=\"\",\"\",DATEDIF($B131,$AA$2,\"d\"))","v":""}]
[null,null,"",null,null,null,{"$f":"IF(F132=\"\",\"\",TEXT(F132,\"dddd\"))","v":""},null,"",""]
[null,null,"",null,null,null,"",null,{"$f":"IF(OR(B133=\"\",F133=\"\"),\"\",DATEDIF(B133,F133,\"d\"))","v":""},""]
[null,null,"",null,null,null,"",null,"",""]
[null,null,"",null,null,null,"",null,"",""]
[null,null,"",null,null,null,"",null,"",""]
[null,null,"",null,null,null,"",null,"",""]
[null,null,"",null,null,null,"",null,"",""]
[null,null,"",null,null,null,"",null,"",""]
[null,null,"",null,null,null,"",null,"",""]
[null,null,"",null,null,null,"",null,"",""]
[null,null,"",null,null,null,"",null,"",""]
[null,null,"",null,null,null,"",null,"",""]
[null,null,"",null,null,null,"",null,"",""]
[null,null,"",null,null,null,"",null,"",""]
[null,null,"",null,null,null,"",null,"",""]
[null,null,"",null,null,null,"",null,"",""]
[null,null,"",null,null,null,"",null,"",""]
[null,null,"",null,null,null,"",null,"",""]
[null,null,"",null,null,null,"",null,"",""]
[null,null,"",null,null,null,"",null,"",""]
[null,null,"",null,null,null,"",null,"",""]
[null,null,"",null,null,null,"",null,"",""]
[null,null,"",null,null,null,"",null,"",""]
[null,null,"",null,null,null,"",null,"",""]
[null,null,"",null,null,null,"",null,"",""]
[null,null,"",null,null,null,"",null,"",""]
[null,null,"",null,null,null,"",null,"",""]
[null,null,"",null,null,null,"",null,"",""]
[null,null,"",null,null,null,"",null,"",""]
[null,null,"",null,null,null,"",null,"",""]
[null,null,"",null,null,null,"",null,"",""]
[null,null,"",null,null,null,"",null,"",""]
[null,null,"",null,null,null,"",null,"",""]
[null,null,"",null,null,null,"",null,"",""]
[null,null,"",null,null,null,"",null,"",""]
[null,null,"",null,null,null,"",null,"",""]
[null,null,"",null,null,null,"",null,"",""]
[null,null,"",null,null,null,"",null,"",""]
[null,null,"",null,null,null,"",null,"",""]
[null,null,"",null,null,null,"",null,"",""]
[null,null,"",null,null,null,"",null,"",""]
[null,null,"",null,null,null,"",null,"",""]
[null,null,"",null,null,null,"",null,"",""]
[null,null,"",null,null,null,"",null,"",""]
[null,null,"",null,null,null,"",null,"",""]
[null,null,"",null,null,null,"",null,"",""]
[null,null,"",null,null,null,"",null,"",""]
[null,null,"",null,null,null,"",null,"",""]
[null,null,"",null,null,null,"",null,"",""]
[null,null,"",null,null,null,"",null,"",""]
[null,null,"",null,null,null,"",null,"",""]
[null,null,"",null,null,null,"",null,"",""]
[null,null,"",null,null,null,"",null,"",""]
[null,null,"",null,null,null,"",null,"",""]
[null,null,"",null,null,null,"",null,"",""]
[null,null,"",null,null,null,"",null,"",""]
[null,null,"",null,null,null,"",null,"",""]
[null,null,"",null,null,null,"",null,"",""]
[null,null,"",null,null,null,"",null,"",""]
[null,null,"",null,null,null,"",null,"",""]
[null,null,"",null,null,null,"",null,"",""]
[null,null,"",null,null,null,"",null,"",""]
[null,null,"",null,null,null,"",null,"",""]
[null,null,{"$f":"IF(B195=\"\",\"\",TEXT(B195,\"dddd\"))","v":""},null,null,null,"",null,"",{"$f":"IF(B195=\"\",\"\",DATEDIF($B195,$AA$2,\"d\"))","v":""}]
[null,null,"",null,null,null,{"$f":"IF(F196=\"\",\"\",TEXT(F196,\"dddd\"))","v":""},null,"",""]
[null,null,"",null,null,null,"",null,{"$f":"IF(OR(B197=\"\",F197=\"\"),\"\",DATEDIF(B197,F197,\"d\"))","v":""},""]
[null,null,"",null,null,null,"",null,"",""]
[null,null,"",null,null,null,"",null,"",""]
[null,null,"",null,null,null,"",null,"",""]
[null,null,"",null,null,null,"",null,"",""]
[null,null,"",null,null,null,"",null,"",""]
[null,null,"",null,null,null,"",null,"",""]
[null,null,"",null,null,null,"",null,"",""]
[null,null,"",null,null,null,"",null,"",""]
[null,null,"",null,null,null,"",null,"",""]
[null,null,"",null,null,null,"",null,"",""]
[null,null,"",null,null,null,"",null,"",""]
[null,null,"",null,null,null,"",null,"",""]
[null,null,"",null,null,null,"",null,"",""]
[null,null,"",null,null,null,"",null,"",""]
[null,null,"",null,null,null,"",null,"",""]
[null,null,"",null,null,null,"",null,"",""]
[null,null,"",null,null,null,"",null,"",""]
[null,null,"",null,null,null,"",null,"",""]
[null,null,"",null,null,null,"",null,"",""]
[null,null,"",null,null,null,"",null,"",""]
[null,null,"",null,null,null,"",null,"",""]
[null,null,"",null,null,null,"",null,"",""]
[null,null,"",null,null,null,"",null,"",""]
[null,null,"",null,null,null,"",null,"",""]
[null,null,"",null,null,null,"",null,"",""]
[null,null,"",null,null,null,"",null,"",""]
[null,null,"",null,null,null,"",null,"",""]
[null,null,"",null,null,null,"",null,"",""]
[null,null,"",null,null,null,"",null,"",""]
[null,null,"",null,null,null,"",null,"",""]
[null,null,"",null,null,null,"",null,"",""]
[null,null,"",null,null,null,"",null,"",""]
[null,null,"",null,null,null,"",null,"",""]
[null,null,"",null,null,null,"",null,"",""]
[null,null,"",null,null,null,"",null,"",""]
[null,null,"",null,null,null,"",null,"",""]
[null,null,"",null,null,null,"",null,"",""]
[null,null,"",null,null,null,"",null,"",""]
[null,null,"",null,null,null,"",null,"",""]
[null,null,"",null,null,null,"",null,"",""]
[null,null,"",null,null,null,"",null,"",""]
[null,null,"",null,null,null,"",null,"",""]
[null,null,"",null,null,null,"",null,"",""]
[null,null,"",null,null,null,"",null,"",""]
[null,null,"",null,null,null,"",null,"",""]
[null,null,"",null,null,null,"",null,"",""]
[null,null,"",null,null,null,"",null,"",""]
[null,null,"",null,null,null,"",null,"",""]
[null,null,"",null,null,null,"",null,"",""]
[null,null,"",null,null,null,"",null,"",""]
[null,null,"",null,null,null,"",null,"",""]
[null,null,"",null,null,null,"",null,"",""]
[null,null,"",null,null,null,"",null,"",""]
[null,null,"",null,null,null,"",null,"",""]
[null,null,"",null,null,null,"",null,"",""]
[null,null,"",null,null,null,"",null,"",""]
[null,null,"",null,null,null,"",null,"",""]
[null,null,"",null,null,null,"",null,"",""]
[null,null,"",null,null,null,"",null,"",""]
[null,null,"",null,null,null,"",null,"",""]
[null,null,"",null,null,null,"",null,"",""]
[null,null,{"$f":"IF(B259=\"\",\"\",TEXT(B259,\"dddd\"))","v":""},null,null,null,"",null,"",{"$f":"IF(B259=\"\",\"\",DATEDIF($B259,$AA$2,\"d\"))","v":""}]
[null,null,"",null,null,null,{"$f":"IF(F260=\"\",\"\",TEXT(F260,\"dddd\"))","v":""},null,"",""]
[null,null,"",null,null,null,"",null,{"$f":"IF(OR(B261=\"\",F261=\"\"),\"\",DATEDIF(B261,F261,\"d\"))","v":""},""]
[null,null,"",null,null,null,"",null,"",""]
[null,null,"",null,null,null,"",null,"",""]
[null,null,"",null,null,null,"",null,"",""]
[null,null,"",null,null,null,"",null,"",""]
[null,null,"",null,null,null,"",null,"",""]
[null,null,"",null,null,null,"",null,"",""]
[null,null,"",null,null,null,"",null,"",""]
[null,null,"",null,null,null,"",null,"",""]
[null,null,"",null,null,null,"",null,"",""]
[null,null,"",null,null,null,"",null,"",""]
[null,null,"",null,null,null,"",null,"",""]
[null,null,"",null,null,null,"",null,"",""]
[null,null,"",null,null,null,"",null,"",""]
[null,null,"",null,null,null,"",null,"",""]
[null,null,"",null,null,null,"",null,"",""]
[null,null,"",null,null,null,"",null,"",""]
[null,null,"",null,null,null,"",null,"",""]
[null,null,"",null,null,null,"",null,"",""]
[null,null,"",null,null,null,"",null,"",""]
[null,null,"",null,null,null,"",null,"",""]
[null,null,"",null,null,null,"",null,"",""]
[null,null,"",null,null,null,"",null,"",""]
[null,null,"",null,null,null,"",null,"",""]
[null,null,"",null,null,null,"",null,"",""]
[null,null,"",null,null,null,"",null,"",""]
[null,null,"",null,null,null,"",null,"",""]
[null,null,"",null,null,null,"",null,"",""]
[null,null,"",null,null,null,"",null,"",""]
[null,null,"",null,null,null,"",null,"",""]
[null,null,"",null,null,null,"",null,"",""]
[null,null,"",null,null,null,"",null,"",""]
[null,null,"",null,null,null,"",null,"",""]
[null,null,"",null,null,null,"",null,"",""]
[null,null,"",null,null,null,"",null,"",""]
[null,null,"",null,null,null,"",null,"",""]
[null,null,"",null,null,null,"",null,"",""]
[null,null,"",null,null,null,"",null,"",""]
[null,null,"",null,null,null,"",null,"",""]
[null,null,"",null,null,null,"",null,"",""]
[null,null,"",null,null,null,"",null,"",""]
[null,null,"",null,null,null,"",null,"",""]
[null,null,"",null,null,null,"",null,"",""]
[null,null,"",null,null,null,"",null,"",""]
[null,null,"",null,null,null,"",null,"",""]
[null,null,"",null,null,null,"",null,"",""]
[null,null,"",null,null,null,"",null,"",""]
[null,null,"",null,null,null,"",null,"",""]
[null,null,"",null,null,null,"",null,"",""]
[null,null,"",null,null,null,"",null,"",""]
[null,null,"",null,null,null,"",null,"",""]
[null,null,"",null,null,null,"",null,"",""]
[null,null,"",null,null,null,"",null,"",""]
[null,null,"",null,null,null,"",null,"",""]
[null,null,"",null,null,null,"",null,"",""]
[null,null,"",null,null,null,"",null,"",""]
[null,null,"",null,null,null,"",null,"",""]
[null,null,"",null,null,null,"",null,"",""]
[null,null,"",null,null,null,"",null,"",""]
[null,null,"",null,null,null,"",null,"",""]
[null,null,"",null,null,null,"",null,"",""]
[null,null,"",null,null,null,"",null,"",""]
[null,null,{"$f":"IF(B323=\"\",\"\",TEXT(B323,\"dddd\"))","v":""},null,null,null,"",null,"",{"$f":"IF(B323=\"\",\"\",DATEDIF($B323,$AA$2,\"d\"))","v":""}]
[null,null,"",null,null,null,{"$f":"IF(F324=\"\",\"\",TEXT(F324,\"dddd\"))","v":""},null,"",""]
[null,null,"",null,null,null,"",null,{"$f":"IF(OR(B325=\"\",F325=\"\"),\"\",DATEDIF(B325,F325,\"d\"))","v":""},""]
[null,null,"",null,null,null,"",null,"",""]
[null,null,"",null,null,null,"",null,"",""]
[null,null,"",null,null,null,"",null,"",""]
[null,null,"",null,null,null,"",null,"",""]
[null,null,"",null,null,null,"",null,"",""]
[null,null,"",null,null,null,"",null,"",""]
[null,null,"",null,null,null,"",null,"",""]
[null,null,"",null,null,null,"",null,"",""]
[null,null,"",null,null,null,"",null,"",""]
[null,null,"",null,null,null,"",null,"",""]
[null,null,"",null,null,null,"",null,"",""]
[null,null,"",null,null,null,"",null,"",""]
[null,null,"",null,null,null,"",null,"",""]
[null,null,"",null,null,null,"",null,"",""]
[null,null,"",null,null,null,"",null,"",""]
[null,null,"",null,null,null,"",null,"",""]
[null,null,"",null,null,null,"",null,"",""]
[null,null,"",null,null,null,"",null,"",""]
[null,null,"",null,null,null,"",null,"",""]
[null,null,"",null,null,null,"",null,"",""]
[null,null,"",null,null,null,"",null,"",""]
[null,null,"",null,null,null,"",null,"",""]
[null,null,"",null,null,null,"",null,"",""]
[null,null,"",null,null,null,"",null,"",""]
[null,null,"",null,null,null,"",null,"",""]
[null,null,"",null,null,null,"",null,"",""]
[null,null,"",null,null,null,"",null,"",""]
[null,null,"",null,null,null,"",null,"",""]
[null,null,"",null,null,null,"",null,"",""]
[null,null,"",null,null,null,"",null,"",""]
[null,null,"",null,null,null,"",null,"",""]
[null,null,"",null,null,null,"",null,"",""]
[null,null,"",null,null,null,"",null,"",""]
[null,null,"",null,null,null,"",null,"",""]
[null,null,"",null,null,null,"",null,"",""]
[null,null,"",null,null,null,"",null,"",""]
[null,null,"",null,null,null,"",null,"",""]
[null,null,"",null,null,null,"",null,"",""]
[null,null,"",null,null,null,"",null,"",""]
[null,null,"",null,null,null,"",null,"",""]
[null,null,"",null,null,null,"",null,"",""]
[null,null,"",null,null,null,"",null,"",""]
[null,null,"",null,null,null,"",null,"",""]
[null,null,"",null,null,null,"",null,"",""]
[null,null,"",null,null,null,"",null,"",""]
[null,null,"",null,null,null,"",null,"",""]
[null,null,"",null,null,null,"",null,"",""]
[null,null,"",null,null,null,"",null,"",""]
[null,null,"",null,null,null,"",null,"",""]
[null,null,"",null,null,null,"",null,"",""]
[null,null,"",null,null,null,"",null,"",""]
[null,null,"",null,null,null,"",null,"",""]
[null,null,"",null,null,null,"",null,"",""]
[null,null,"",null,null,null,"",null,"",""]
[null,null,"",null,null,null,"",null,"",""]
[null,null,"",null,null,null,"",null,"",""]
[null,null,"",null,null,null,"",null,"",""]
[null,null,"",null,null,null,"",null,"",""]
[null,null,"",null,null,null,"",null,"",""]
[null,null,"",null,null,null,"",null,"",""]
[null,null,"",null,null,null,"",null,"",""]
[null,null,{"$f":"IF(B387=\"\",\"\",TEXT(B387,\"dddd\"))","v":""},null,null,null,"",null,"",{"$f":"IF(B387=\"\",\"\",DATEDIF($B387,$AA$2,\"d\"))","v":""}]
[null,null,"",null,null,null,{"$f":"IF(F388=\"\",\"\",TEXT(F388,\"dddd\"))","v":""},null,"",""]
[null,null,"",null,null,null,"",null,{"$f":"IF(OR(B389=\"\",F389=\"\"),\"\",DATEDIF(B389,F389,\"d\"))","v":""},""]
[null,null,"",null,null,null,"",null,"",""]
[null,null,"",null,null,null,"",null,"",""]
[null,null,"",null,null,null,"",null,"",""]
[null,null,"",null,null,null,"",null,"",""]
[null,null,"",null,null,null,"",null,"",""]
[null,null,"",null,null,null,"",null,"",""]
[null,null,"",null,null,null,"",null,"",""]
[null,null,"",null,null,null,"",null,"",""]
[null,null,"",null,null,null,"",null,"",""]
[null,null,"",null,null,null,"",null,"",""]
[null,null,"",null,null,null,"",null,"",""]
[null,null,"",null,null,null,"",null,"",""]
[null,null,"",null,null,null,"",null,"",""]
[null,null,"",null,null,null,"",null,"",""]
[null,null,"",null,null,null,"",null,"",""]
[null,null,"",null,null,null,"",null,"",""]
[null,null,"",null,null,null,"",null,"",""]
[null,null,"",null,null,null,"",null,"",""]
[null,null,"",null,null,null,"",null,"",""]
[null,null,"",null,null,null,"",null,"",""]
[null,null,"",null,null,null,"",null,"",""]
[null,null,"",null,null,null,"",null,"",""]
[null,null,"",null,null,null,"",null,"",""]
[null,null,"",null,null,null,"",null,"",""]
[null,null,"",null,null,null,"",null,"",""]
[null,null,"",null,null,null,"",null,"",""]
[null,null,"",null,null,null,"",null,"",""]
[null,null,"",null,null,null,"",null,"",""]
[null,null,"",null,null,null,"",null,"",""]
[null,null,"",null,null,null,"",null,"",""]
[null,null,"",null,null,null,"",null,"",""]
[null,null,"",null,null,null,"",null,"",""]
[null,null,"",null,null,null,"",null,"",""]
[null,null,"",null,null,null,"",null,"",""]
[null,null,"",null,null,null,"",null,"",""]
[null,null,"",null,null,null,"",null,"",""]
[null,null,"",null,null,null,"",null,"",""]
[null,null,"",null,null,null,"",null,"",""]
[null,null,"",null,null,null,"",null,"",""]
[null,null,"",null,null,null,"",null,"",""]
[null,null,"",null,null,null,"",null,"",""]
[null,null,"",null,null,null,"",null,"",""]
[null,null,"",null,null,null,"",null,"",""]
[null,null,"",null,null,null,"",null,"",""]
[null,null,"",null,null,null,"",null,"",""]
[null,null,"",null,null,null,"",null,"",""]
[null,null,"",null,null,null,"",null,"",""]
[null,null,"",null,null,null,"",null,"",""]
[null,null,"",null,null,null,"",null,"",""]
[null,null,"",null,null,null,"",null,"",""]
[null,null,"",null,null,null,"",null,"",""]
[null,null,"",null,null,null,"",null,"",""]
[null,null,"",null,null,null,"",null,"",""]
[null,null,"",null,null,null,"",null,"",""]
[null,null,"",null,null,null,"",null,"",""]
[null,null,"",null,null,null,"",null,"",""]
[null,null,"",null,null,null,"",null,"",""]
[null,null,"",null,null,null,"",null,"",""]
[null,null,"",null,null,null,"",null,"",""]
[null,null,"",null,null,null,"",null,"",""]
[null,null,"",null,null,null,"",null,"",""]
[null,null,{"$f":"IF(B451=\"\",\"\",TEXT(B451,\"dddd\"))","v":""},null,null,null,"",null,"",{"$f":"IF(B451=\"\",\"\",DATEDIF($B451,$AA$2,\"d\"))","v":""}]
[null,null,"",null,null,null,{"$f":"IF(F452=\"\",\"\",TEXT(F452,\"dddd\"))","v":""},null,"",""]
[null,null,"",null,null,null,"",null,{"$f":"IF(OR(B453=\"\",F453=\"\"),\"\",DATEDIF(B453,F453,\"d\"))","v":""},""]
[null,null,"",null,null,null,"",null,"",""]
[null,null,"",null,null,null,"",null,"",""]
[null,null,"",null,null,null,"",null,"",""]
[null,null,"",null,null,null,"",null,"",""]
[null,null,"",null,null,null,"",null,"",""]
[null,null,"",null,null,null,"",null,"",""]
[null,null,"",null,null,null,"",null,"",""]
[null,null,"",null,null,null,"",null,"",""]
[null,null,"",null,null,null,"",null,"",""]
[null,null,"",null,null,null,"",null,"",""]
[null,null,"",null,null,null,"",null,"",""]
[null,null,"",null,null,null,"",null,"",""]
[null,null,"",null,null,null,"",null,"",""]
[null,null,"",null,null,null,"",null,"",""]
[null,null,"",null,null,null,"",null,"",""]
[null,null,"",null,null,null,"",null,"",""]
[null,null,"",null,null,null,"",null,"",""]
[null,null,"",null,null,null,"",null,"",""]
[null,null,"",null,null,null,"",null,"",""]
[null,null,"",null,null,null,"",null,"",""]
[null,null,"",null,null,null,"",null,"",""]
[null,null,"",null,null,null,"",null,"",""]
[null,null,"",null,null,null,"",null,"",""]
[null,null,"",null,null,null,"",null,"",""]
[null,null,"",null,null,null,"",null,"",""]
[null,null,"",null,null,null,"",null,"",""]
[null,null,"",null,null,null,"",null,"",""]
[null,null,"",null,null,null,"",null,"",""]
[null,null,"",null,null,null,"",null,"",""]
[null,null,"",null,null,null,"",null,"",""]
[null,null,"",null,null,null,"",null,"",""]
[null,null,"",null,null,null,"",null,"",""]
[null,null,"",null,null,null,"",null,"",""]
[null,null,"",null,null,null,"",null,"",""]
[null,null,"",null,null,null,"",null,"",""]
[null,null,"",null,null,null,"",null,"",""]
[null,null,"",null,null,null,"",null,"",""]
[null,null,"",null,null,null,"",null,"",""]
[null,null,"",null,null,null,"",null,"",""]
[null,null,"",null,null,null,"",null,"",""]
[null,null,"",null,null,null,"",null,"",""]
[null,null,"",null,null,null,"",null,"",""]
[null,null,"",null,null,null,"",null,"",""]
[null,null,"",null,null,null,"",null,"",""]
[null,null,"",null,null,null,"",null,"",""]
[null,null,"",null,null,null,"",null,"",""]
[null,null,"",null,null,null,"",null,"",""]
[null,null,"",null,null,null,"",null,"",""]
[null,null,"",null,null,null,"",null,"",""]
[null,null,"",null,null,null,"",null,"",""]
[null,null,"",null,null,null,"",null,"",""]
[null,null,"",null,null,null,"",null,"",""]
[null,null,"",null,null,null,"",null,"",""]
[null,null,"",null,null,null,"",null,"",""]
[null,null,"",null,null,null,"",null,"",""]
[null,null,"",null,null,null,"",null,"",""]
[null,null,"",null,null,null,"",null,"",""]
[null,null,"",null,null,null,"",null,"",""]
[null,null,"",null,null,null,"",null,"",""]
[null,null,"",null,null,null,"",null,"",""]
[null,null,"",null,null,null,"",null,"",""]
[null,null,{"$f":"IF(B515=\"\",\"\",TEXT(B515,\"dddd\"))","v":""},null,null,null,"",null,"",{"$f":"IF(B515=\"\",\"\",DATEDIF($B515,$AA$2,\"d\"))","v":""}]
[null,null,"",null,null,null,{"$f":"IF(F516=\"\",\"\",TEXT(F516,\"dddd\"))","v":""},null,"",""]
[null,null,"",null,null,null,"",null,{"$f":"IF(OR(B517=\"\",F517=\"\"),\"\",DATEDIF(B517,F517,\"d\"))","v":""},""]
[null,null,"",null,null,null,"",null,"",""]
[null,null,"",null,null,null,"",null,"",""]
[null,null,"",null,null,null,"",null,"",""]
[null,null,"",null,null,null,"",null,"",""]
[null,null,"",null,null,null,"",null,"",""]
[null,null,"",null,null,null,"",null,"",""]
[null,null,"",null,null,null,"",null,"",""]
[null,null,"",null,null,null,"",null,"",""]
[null,null,"",null,null,null,"",null,"",""]
[null,null,"",null,null,null,"",null,"",""]
[null,null,"",null,null,null,"",null,"",""]
[null,null,"",null,null,null,"",null,"",""]
[null,null,"",null,null,null,"",null,"",""]
[null,null,"",null,null,null,"",null,"",""]
[null,null,"",null,null,null,"",null,"",""]
[null,null,"",null,null,null,"",null,"",""]
[null,null,"",null,null,null,"",null,"",""]
[null,null,"",null,null,null,"",null,"",""]
[null,null,"",null,null,null,"",null,"",""]
[null,null,"",null,null,null,"",null,"",""]
[null,null,"",null,null,null,"",null,"",""]
[null,null,"",null,null,null,"",null,"",""]
[null,null,"",null,null,null,"",null,"",""]
[null,null,"",null,null,null,"",null,"",""]
[null,null,"",null,null,null,"",null,"",""]
[null,null,"",null,null,null,"",null,"",""]
[null,null,"",null,null,null,"",null,"",""]
[null,null,"",null,null,null,"",null,"",""]
[null,null,"",null,null,null,"",null,"",""]
[null,null,"",null,null,null,"",null,"",""]
[null,null,"",null,null,null,"",null,"",""]
[null,null,"",null,null,null,"",null,"",""]
[null,null,"",null,null,null,"",null,"",""]
[null,null,"",null,null,null,"",null,"",""]
[null,null,"",null,null,null,"",null,"",""]
[null,null,"",null,null,null,"",null,"",""]
[null,null,"",null,null,null,"",null,"",""]
[null,null,"",null,null,null,"",null,"",""]
[null,null,"",null,null,null,"",null,"",""]
[null,null,"",null,null,null,"",null,"",""]
[null,null,"",null,null,null,"",null,"",""]
[null,null,"",null,null,null,"",null,"",""]
[null,null,"",null,null,null,"",null,"",""]
[null,null,"",null,null,null,"",null,"",""]
[null,null,"",null,null,null,"",null,"",""]
[null,null,"",null,null,null,"",null,"",""]
[null,null,"",null,null,null,"",null,"",""]
[null,null,"",null,null,null,"",null,"",""]
[null,null,"",null,null,null,"",null,"",""]
[null,null,"",null,null,null,"",null,"",""]
[null,null,"",null,null,null,"",null,"",""]
[null,null,"",null,null,null,"",null,"",""]
[null,null,"",null,null,null,"",null,"",""]
[null,null,"",null,null,null,"",null,"",""]
[null,null,"",null,null,null,"",null,"",""]
[null,null,"",null,null,null,"",null,"",""]
[null,null,"",null,null,null,"",null,"",""]
[null,null,"",null,null,null,"",null,"",""]
[null,null,"",null,null,null,"",null,"",""]
[null,null,"",null,null,null,"",null,"",""]
[null,null,"",null,null,null,"",null,"",""]
[null,null,{"$f":"IF(B579=\"\",\"\",TEXT(B579,\"dddd\"))","v":""},null,null,null,"",null,"",{"$f":"IF(B579=\"\",\"\",DATEDIF($B579,$AA$2,\"d\"))","v":""}]
[null,null,"",null,null,null,{"$f":"IF(F580=\"\",\"\",TEXT(F580,\"dddd\"))","v":""},null,"",""]
[null,null,"",null,null,null,"",null,{"$f":"IF(OR(B581=\"\",F581=\"\"),\"\",DATEDIF(B581,F581,\"d\"))","v":""},""]
[null,null,"",null,null,null,"",null,"",""]
[null,null,"",null,null,null,"",null,"",""]
[null,null,"",null,null,null,"",null,"",""]
[null,null,"",null,null,null,"",null,"",""]
[null,null,"",null,null,null,"",null,"",""]
[null,null,"",null,null,null,"",null,"",""]
[null,null,"",null,null,null,"",null,"",""]
[null,null,"",null,null,null,"",null,"",""]
[null,null,"",null,null,null,"",null,"",""]
[null,null,"",null,null,null,"",null,"",""]
[null,null,"",null,null,null,"",null,"",""]
[null,null,"",null,null,null,"",null,"",""]
[null,null,"",null,null,null,"",null,"",""]
[null,null,"",null,null,null,"",null,"",""]
[null,null,"",null,null,null,"",null,"",""]
[null,null,"",null,null,null,"",null,"",""]
[null,null,"",null,null,null,"",null,"",""]
[null,null,"",null,null,null,"",null,"",""]
[null,null,"",null,null,null,"",null,"",""]
[null,null,"",null,null,null,"",null,"",""]
[null,null,"",null,null,null,"",null,"",""]
[null,null,"",null,null,null,"",null,"",""]
[null,null,"",null,null,null,"",null,"",""]
[null,null,"",null,null,null,"",null,"",""]
[null,null,"",null,null,null,"",null,"",""]
[null,null,"",null,null,null,"",null,"",""]
[null,null,"",null,null,null,"",null,"",""]
[null,null,"",null,null,null,"",null,"",""]
[null,null,"",null,null,null,"",null,"",""]
[null,null,"",null,null,null,"",null,"",""]
[null,null,"",null,null,null,"",null,"",""]
[null,null,"",null,null,null,"",null,"",""]
[null,null,"",null,null,null,"",null,"",""]
[null,null,"",null,null,null,"",null,"",""]
[null,null,"",null,null,null,"",null,"",""]
[null,null,"",null,null,null,"",null,"",""]
[null,null,"",null,null,null,"",null,"",""]
[null,null,"",null,null,null,"",null,"",""]
[null,null,"",null,null,null,"",null,"",""]
[null,null,"",null,null,null,"",null,"",""]
[null,null,"",null,null,null,"",null,"",""]
[null,null,"",null,null,null,"",null,"",""]
[null,null,"",null,null,null,"",null,"",""]
[null,null,"",null,null,null,"",null,"",""]
[null,null,"",null,null,null,"",null,"",""]
[null,null,"",null,null,null,"",null,"",""]
[null,null,"",null,null,null,"",null,"",""]
[null,null,"",null,null,null,"",null,"",""]
[null,null,"",null,null,null,"",null,"",""]
[null,null,"",null,null,null,"",null,"",""]
[null,null,"",null,null,null,"",null,"",""]
[null,null,"",null,null,null,"",null,"",""]
[null,null,"",null,null,null,"",null,"",""]
[null,null,"",null,null,null,"",null,"",""]
[null,null,"",null,null,null,"",null,"",""]
[null,null,"",null,null,null,"",null,"",""]
[null,null,"",null,null,null,"",null,"",""]
[null,null,"",null,null,null,"",null,"",""]
[null,null,"",null,null,null,"",null,"",""]
[null,null,"",null,null,null,"",null,"",""]
[null,null,"",null,null,null,"",null,"",""]
[null,null,{"$f":"IF(B643=\"\",\"\",TEXT(B643,\"dddd\"))","v":""},null,null,null,"",null,"",{"$f":"IF(B643=\"\",\"\",DATEDIF($B643,$AA$2,\"d\"))","v":""}]
[null,null,"",null,null,null,{"$f":"IF(F644=\"\",\"\",TEXT(F644,\"dddd\"))","v":""},null,"",""]
[null,null,"",null,null,null,"",null,{"$f":"IF(OR(B645=\"\",F645=\"\"),\"\",DATEDIF(B645,F645,\"d\"))","v":""},""]
[null,null,"",null,null,null,"",null,"",""]
[null,null,"",null,null,null,"",null,"",""]
[null,null,"",null,null,null,"",null,"",""]
[null,null,"",null,null,null,"",null,"",""]
[null,null,"",null,null,null,"",null,"",""]
[null,null,"",null,null,null,"",null,"",""]
[null,null,"",null,null,null,"",null,"",""]
[null,null,"",null,null,null,"",null,"",""]
[null,null,"",null,null,null,"",null,"",""]
[null,null,"",null,null,null,"",null,"",""]
[null,null,"",null,null,null,"",null,"",""]
[null,null,"",null,null,null,"",null,"",""]
[null,null,"",null,null,null,"",null,"",""]
[null,null,"",null,null,null,"",null,"",""]
[null,null,"",null,null,null,"",null,"",""]
[null,null,"",null,null,null,"",null,"",""]
[null,null,"",null,null,null,"",null,"",""]
[null,null,"",null,null,null,"",null,"",""]
[null,null,"",null,null,null,"",null,"",""]
[null,null,"",null,null,null,"",null,"",""]
[null,null,"",null,null,null,"",null,"",""]
[null,null,"",null,null,null,"",null,"",""]
[null,null,"",null,null,null,"",null,"",""]
[null,null,"",null,null,null,"",null,"",""]
[null,null,"",null,null,null,"",null,"",""]
[null,null,"",null,null,null,"",null,"",""]
[null,null,"",null,null,null,"",null,"",""]
[null,null,"",null,null,null,"",null,"",""]
[null,null,"",null,null,null,"",null,"",""]
[null,null,"",null,null,null,"",null,"",""]
[null,null,"",null,null,null,"",null,"",""]
[null,null,"",null,null,null,"",null,"",""]
[null,null,"",null,null,null,"",null,"",""]
[null,null,"",null,null,null,"",null,"",""]
[null,null,"",null,null,null,"",null,"",""]
[null,null,"",null,null,null,"",null,"",""]
[null,null,"",null,null,null,"",null,"",""]
[null,null,"",null,null,null,"",null,"",""]
[null,null,"",null,null,null,"",null,"",""]
[null,null,"",null,null,null,"",null,"",""]
[null,null,"",null,null,null,"",null,"",""]
[null,null,"",null,null,null,"",null,"",""]
[null,null,"",null,null,null,"",null,"",""]
[null,null,"",null,null,null,"",null,"",""]
[null,null,"",null,null,null,"",null,"",""]
[null,null,"",null,null,null,"",null,"",""]
[null,null,"",null,null,null,"",null,"",""]
[null,null,"",null,null,null,"",null,"",""]
[null,null,"",null,null,null,"",null,"",""]
[null,null,"",null,null,null,"",null,"",""]
[null,null,"",null,null,null,"",null,"",""]
[null,null,"",null,null,null,"",null,"",""]
[null,null,"",null,null,null,"",null,"",""]
[null,null,"",null,null,null,"",null,"",""]
[null,null,"",null,null,null,"",null,"",""]
[null,null,"",null,null,null,"",null,"",""]
[null,null,"",null,null,null,"",null,"",""]
[null,null,"",null,null,null,"",null,"",""]
[null,null,"",null,null,null,"",null,"",""]
[null,null,"",null,null,null,"",null,"",""]
[null,null,"",null,null,null,"",null,"",""]
[null,null,{"$f":"IF(B707=\"\",\"\",TEXT(B707,\"dddd\"))","v":""},null,null,null,"",null,"",{"$f":"IF(B707=\"\",\"\",DATEDIF($B707,$AA$2,\"d\"))","v":""}]
[null,null,"",null,null,null,{"$f":"IF(F708=\"\",\"\",TEXT(F708,\"dddd\"))","v":""},null,"",""]
[null,null,"",null,null,null,"",null,{"$f":"IF(OR(B709=\"\",F709=\"\"),\"\",DATEDIF(B709,F709,\"d\"))","v":""},""]
[null,null,"",null,null,null,"",null,"",""]
[null,null,"",null,null,null,"",null,"",""]
[null,null,"",null,null,null,"",null,"",""]
[null,null,"",null,null,null,"",null,"",""]
[null,null,"",null,null,null,"",null,"",""]
[null,null,"",null,null,null,"",null,"",""]
[null,null,"",null,null,null,"",null,"",""]
[null,null,"",null,null,null,"",null,"",""]
[null,null,"",null,null,null,"",null,"",""]
[null,null,"",null,null,null,"",null,"",""]
[null,null,"",null,null,null,"",null,"",""]
[null,null,"",null,null,null,"",null,"",""]
[null,null,"",null,null,null,"",null,"",""]
[null,null,"",null,null,null,"",null,"",""]
[null,null,"",null,null,null,"",null,"",""]
[null,null,"",null,null,null,"",null,"",""]
[null,null,"",null,null,null,"",null,"",""]
[null,null,"",null,null,null,"",null,"",""]
[null,null,"",null,null,null,"",null,"",""]
[null,null,"",null,null,null,"",null,"",""]
[null,null,"",null,null,null,"",null,"",""]
[null,null,"",null,null,null,"",null,"",""]
[null,null,"",null,null,null,"",null,"",""]
[null,null,"",null,null,null,"",null,"",""]
[null,null,"",null,null,null,"",null,"",""]
[null,null,"",null,null,null,"",null,"",""]
[null,null,"",null,null,null,"",null,"",""]
[null,null,"",null,null,null,"",null,"",""]
[null,null,"",null,null,null,"",null,"",""]
[null,null,"",null,null,null,"",null,"",""]
[null,null,"",null,null,null,"",null,"",""]
[null,null,"",null,null,null,"",null,"",""]
[null,null,"",null,null,null,"",null,"",""]
[null,null,"",null,null,null,"",null,"",""]
[null,null,"",null,null,null,"",null,"",""]
[null,null,"",null,null,null,"",null,"",""]
[null,null,"",null,null,null,"",null,"",""]
[null,null,"",null,null,null,"",null,"",""]
[null,null,"",null,null,null,"",null,"",""]
[null,null,"",null,null,null,"",null,"",""]
[null,null,"",null,null,null,"",null,"",""]
[null,null,"",null,null,null,"",null,"",""]
[null,null,"",null,null,null,"",null,"",""]
[null,null,"",null,null,null,"",null,"",""]
[null,null,"",null,null,null,"",null,"",""]
[null,null,"",null,null,null,"",null,"",""]
[null,null,"",null,null,null,"",null,"",""]
[null,null,"",null,null,null,"",null,"",""]
[null,null,"",null,null,null,"",null,"",""]
[null,null,"",null,null,null,"",null,"",""]
[null,null,"",null,null,null,"",null,"",""]
[null,null,"",null,null,null,"",null,"",""]
[null,null,"",null,null,null,"",null,"",""]
[null,null,"",null,null,null,"",null,"",""]
[null,null,"",null,null,null,"",null,"",""]
[null,null,"",null,null,null,"",null,"",""]
[null,null,"",null,null,null,"",null,"",""]
[null,null,"",null,null,null,"",null,"",""]
[null,null,"",null,null,null,"",null,"",""]
[null,null,"",null,null,null,"",null,"",""]
[null,null,"",null,null,null,"",null,"",""]
[null,null,{"$f":"IF(B771=\"\",\"\",TEXT(B771,\"dddd\"))","v":""},null,null,null,"",null,"",{"$f":"IF(B771=\"\",\"\",DATEDIF($B771,$AA$2,\"d\"))","v":""}]
[null,null,"",null,null,null,{"$f":"IF(F772=\"\",\"\",TEXT(F772,\"dddd\"))","v":""},null,"",""]
[null,null,"",null,null,null,"",null,{"$f":"IF(OR(B773=\"\",F773=\"\"),\"\",DATEDIF(B773,F773,\"d\"))","v":""},""]
[null,null,"",null,null,null,"",null,"",""]
[null,null,"",null,null,null,"",null,"",""]
[null,null,"",null,null,null,"",null,"",""]
[null,null,"",null,null,null,"",null,"",""]
[null,null,"",null,null,null,"",null,"",""]
[null,null,"",null,null,null,"",null,"",""]
[null,null,"",null,null,null,"",null,"",""]
[null,null,"",null,null,null,"",null,"",""]
[null,null,"",null,null,null,"",null,"",""]
[null,null,"",null,null,null,"",null,"",""]
[null,null,"",null,null,null,"",null,"",""]
[null,null,"",null,null,null,"",null,"",""]
[null,null,"",null,null,null,"",null,"",""]
[null,null,"",null,null,null,"",null,"",""]
[null,null,"",null,null,null,"",null,"",""]
[null,null,"",null,null,null,"",null,"",""]
[null,null,"",null,null,null,"",null,"",""]
[null,null,"",null,null,null,"",null,"",""]
[null,null,"",null,null,null,"",null,"",""]
[null,null,"",null,null,null,"",null,"",""]
[null,null,"",null,null,null,"",null,"",""]
[null,null,"",null,null,null,"",null,"",""]
[null,null,"",null,null,null,"",null,"",""]
[null,null,"",null,null,null,"",null,"",""]
[null,null,"",null,null,null,"",null,"",""]
[null,null,"",null,null,null,"",null,"",""]
[null,null,"",null,null,null,"",null,"",""]
[null,null,"",null,null,null,"",null,"",""]
[null,null,"",null,null,null,"",null,"",""]
[null,null,"",null,null,null,"",null,"",""]
[null,null,"",null,null,null,"",null,"",""]
[null,null,"",null,null,null,"",null,"",""]
[null,null,"",null,null,null,"",null,"",""]
[null,null,"",null,null,null,"",null,"",""]
[null,null,"",null,null,null,"",null,"",""]
[null,null,"",null,null,null,"",null,"",""]
[null,null,"",null,null,null,"",null,"",""]
[null,null,"",null,null,null,"",null,"",""]
[null,null,"",null,null,null,"",null,"",""]
[null,null,"",null,null,null,"",null,"",""]
[null,null,"",null,null,null,"",null,"",""]
[null,null,"",null,null,null,"",null,"",""]
[null,null,"",null,null,null,"",null,"",""]
[null,null,"",null,null,null,"",null,"",""]
[null,null,"",null,null,null,"",null,"",""]
[null,null,"",null,null,null,"",null,"",""]
[null,null,"",null,null,null,"",null,"",""]
[null,null,"",null,null,null,"",null,"",""]
[null,null,"",null,null,null,"",null,"",""]
[null,null,"",null,null,null,"",null,"",""]
[null,null,"",null,null,null,"",null,"",""]
[null,null,"",null,null,null,"",null,"",""]
[null,null,"",null,null,null,"",null,"",""]
[null,null,"",null,null,null,"",null,"",""]
[null,null,"",null,null,null,"",null,"",""]
[null,null,"",null,null,null,"",null,"",""]
[null,null,"",null,null,null,"",null,"",""]
[null,null,"",null,null,null,"",null,"",""]
[null,null,"",null,null,null,"",null,"",""]
[null,null,"",null,null,null,"",null,"",""]
[null,null,"",null,null,null,"",null,"",""]
[null,null,{"$f":"IF(B835=\"\",\"\",TEXT(B835,\"dddd\"))","v":""},null,null,null,"",null,"",{"$f":"IF(B835=\"\",\"\",DATEDIF($B835,$AA$2,\"d\"))","v":""}]
[null,null,"",null,null,null,{"$f":"IF(F836=\"\",\"\",TEXT(F836,\"dddd\"))","v":""},null,"",""]
[null,null,"",null,null,null,"",null,{"$f":"IF(OR(B837=\"\",F837=\"\"),\"\",DATEDIF(B837,F837,\"d\"))","v":""},""]
[null,null,"",null,null,null,"",null,"",""]
[null,null,"",null,null,null,"",null,"",""]
[null,null,"",null,null,null,"",null,"",""]
[null,null,"",null,null,null,"",null,"",""]
[null,null,"",null,null,null,"",null,"",""]
[null,null,"",null,null,null,"",null,"",""]
[null,null,"",null,null,null,"",null,"",""]
[null,null,"",null,null,null,"",null,"",""]
[null,null,"",null,null,null,"",null,"",""]
[null,null,"",null,null,null,"",null,"",""]
[null,null,"",null,null,null,"",null,"",""]
[null,null,"",null,null,null,"",null,"",""]
[null,null,"",null,null,null,"",null,"",""]
[null,null,"",null,null,null,"",null,"",""]
[null,null,"",null,null,null,"",null,"",""]
[null,null,"",null,null,null,"",null,"",""]
[null,null,"",null,null,null,"",null,"",""]
[null,null,"",null,null,null,"",null,"",""]
[null,null,"",null,null,null,"",null,"",""]
[null,null,"",null,null,null,"",null,"",""]
[null,null,"",null,null,null,"",null,"",""]
[null,null,"",null,null,null,"",null,"",""]
[null,null,"",null,null,null,"",null,"",""]
[null,null,"",null,null,null,"",null,"",""]
[null,null,"",null,null,null,"",null,"",""]
[null,null,"",null,null,null,"",null,"",""]
[null,null,"",null,null,null,"",null,"",""]
[null,null,"",null,null,null,"",null,"",""]
[null,null,"",null,null,null,"",null,"",""]
[null,null,"",null,null,null,"",null,"",""]
[null,null,"",null,null,null,"",null,"",""]
[null,null,"",null,null,null,"",null,"",""]
[null,null,"",null,null,null,"",null,"",""]
[null,null,"",null,null,null,"",null,"",""]
[null,null,"",null,null,null,"",null,"",""]
[null,null,"",null,null,null,"",null,"",""]
[null,null,"",null,null,null,"",null,"",""]
[null,null,"",null,null,null,"",null,"",""]
[null,null,"",null,null,null,"",null,"",""]
[null,null,"",null,null,null,"",null,"",""]
[null,null,"",null,null,null,"",null,"",""]
[null,null,"",null,null,null,"",null,"",""]
[null,null,"",null,null,null,"",null,"",""]
[null,null,"",null,null,null,"",null,"",""]
[null,null,"",null,null,null,"",null,"",""]
[null,null,"",null,null,null,"",null,"",""]
[null,null,"",null,null,null,"",null,"",""]
[null,null,"",null,null,null,"",null,"",""]
[null,null,"",null,null,null,"",null,"",""]
[null,null,"",null,null,null,"",null,"",""]
[null,null,"",null,null,null,"",null,"",""]
[null,null,"",null,null,null,"",null,"",""]
[null,null,"",null,null,null,"",null,"",""]
[null,null,"",null,null,null,"",null,"",""]
[null,null,"",null,null,null,"",null,"",""]
[null,null,"",null,null,null,"",null,"",""]
[null,null,"",null,null,null,"",null,"",""]
[null,null,"",null,null,null,"",null,"",""]
[null,null,"",null,null,null,"",null,"",""]
[null,null,"",null,null,null,"",null,"",""]
[null,null,"",null,null,null,"",null,"",""]
[null,null,{"$f":"IF(B899=\"\",\"\",TEXT(B899,\"dddd\"))","v":""},null,null,null,"",null,"",{"$f":"IF(B899=\"\",\"\",DATEDIF($B899,$AA$2,\"d\"))","v":""}]
[null,null,"",null,null,null,{"$f":"IF(F900=\"\",\"\",TEXT(F900,\"dddd\"))","v":""},null,"",""]
[null,null,"",null,null,null,"",null,{"$f":"IF(OR(B901=\"\",F901=\"\"),\"\",DATEDIF(B901,F901,\"d\"))","v":""},""]
[null,null,"",null,null,null,"",null,"",""]
[null,null,"",null,null,null,"",null,"",""]
[null,null,"",null,null,null,"",null,"",""]
[null,null,"",null,null,null,"",null,"",""]
[null,null,"",null,null,null,"",null,"",""]
[null,null,"",null,null,null,"",null,"",""]
[null,null,"",null,null,null,"",null,"",""]
[null,null,"",null,null,null,"",null,"",""]
[null,null,"",null,null,null,"",null,"",""]
[null,null,"",null,null,null,"",null,"",""]
[null,null,"",null,null,null,"",null,"",""]
[null,null,"",null,null,null,"",null,"",""]
[null,null,"",null,null,null,"",null,"",""]
[null,null,"",null,null,null,"",null,"",""]
[null,null,"",null,null,null,"",null,"",""]
[null,null,"",null,null,null,"",null,"",""]
[null,null,"",null,null,null,"",null,"",""]
[null,null,"",null,null,null,"",null,"",""]
[null,null,"",null,null,null,"",null,"",""]
[null,null,"",null,null,null,"",null,"",""]
[null,null,"",null,null,null,"",null,"",""]
[null,null,"",null,null,null,"",null,"",""]
[null,null,"",null,null,null,"",null,"",""]
[null,null,"",null,null,null,"",null,"",""]
[null,null,"",null,null,null,"",null,"",""]
[null,null,"",null,null,null,"",null,"",""]
[null,null,"",null,null,null,"",null,"",""]
[null,null,"",null,null,null,"",null,"",""]
[null,null,"",null,null,null,"",null,"",""]
[null,null,"",null,null,null,"",null,"",""]
[null,null,"",null,null,null,"",null,"",""]
[null,null,"",null,null,null,"",null,"",""]
[null,null,"",null,null,null,"",null,"",""]
[null,null,"",null,null,null,"",null,"",""]
[null,null,"",null,null,null,"",null,"",""]
[null,null,"",null,null,null,"",null,"",""]
[null,null,"",null,null,null,"",null,"",""]
[null,null,"",null,null,null,"",null,"",""]
[null,null,"",null,null,null,"",null,"",""]
[null,null,"",null,null,null,"",null,"",""]
[null,null,"",null,null,null,"",null,"",""]
[null,null,"",null,null,null,"",null,"",""]
[null,null,"",null,null,null,"",null,"",""]
[null,null,"",null,null,null,"",null,"",""]
[null,null,"",null,null,null,"",null,"",""]
[null,null,"",null,null,null,"",null,"",""]
[null,null,"",null,null,null,"",null,"",""]
[null,null,"",null,null,null,"",null,"",""]
[null,null,"",null,null,null,"",null,"",""]
[null,null,"",null,null,null,"",null,"",""]
[null,null,"",null,null,null,"",null,"",""]
[null,null,"",null,null,null,"",null,"",""]
[null,null,"",null,null,null,"",null,"",""]
[null,null,"",null,null,null,"",null,"",""]
[null,null,"",null,null,null,"",null,"",""]
[null,null,"",null,null,null,"",null,"",""]
[null,null,"",null,null,null,"",null,"",""]
[null,null,"",null,null,null,"",null,"",""]
[null,null,"",null,null,null,"",null,"",""]
[null,null,"",null,null,null,"",null,"",""]
[null,null,"",null,null,null,"",null,"",""]
[null,null,{"$f":"IF(B963=\"\",\"\",TEXT(B963,\"dddd\"))","v":""},null,null,null,"",null,"",{"$f":"IF(B963=\"\",\"\",DATEDIF($B963,$AA$2,\"d\"))","v":""}]
[null,null,"",null,null,null,{"$f":"IF(F964=\"\",\"\",TEXT(F964,\"dddd\"))","v":""},null,"",""]
[null,null,"",null,null,null,"",null,{"$f":"IF(OR(B965=\"\",F965=\"\"),\"\",DATEDIF(B965,F965,\"d\"))","v":""},""]
[null,null,"",null,null,null,"",null,"",""]
[null,null,"",null,null,null,"",null,"",""]
[null,null,"",null,null,null,"",null,"",""]
[null,null,"",null,null,null,"",null,"",""]
[null,null,"",null,null,null,"",null,"",""]
[null,null,"",null,null,null,"",null,"",""]
[null,null,"",null,null,null,"",null,"",""]
[null,null,"",null,null,null,"",null,"",""]
[null,null,"",null,null,null,"",null,"",""]
[null,null,"",null,null,null,"",null,"",""]
[null,null,"",null,null,null,"",null,"",""]
[null,null,"",null,null,null,"",null,"",""]
[null,null,"",null,null,null,"",null,"",""]
[null,null,"",null,null,null,"",null,"",""]
[null,null,"",null,null,null,"",null,"",""]
[null,null,"",null,null,null,"",null,"",""]
[null,null,"",null,null,null,"",null,"",""]
[null,null,"",null,null,null,"",null,"",""]
[null,null,"",null,null,null,"",null,"",""]
[null,null,"",null,null,null,"",null,"",""]
[null,null,"",null,null,null,"",null,"",""]
[null,null,"",null,null,null,"",null,"",""]
[null,null,"",null,null,null,"",null,"",""]
[null,null,"",null,null,null,"",null,"",""]
[null,null,"",null,null,null,"",null,"",""]
[null,null,"",null,null,null,"",null,"",""]
[null,null,"",null,null,null,"",null,"",""]
[null,null,"",null,null,null,"",null,"",""]
[null,null,"",null,null,null,"",null,"",""]
[null,null,"",null,null,null,"",null,"",""]
[null,null,"",null,null,null,"",null,"",""]
[null,null,"",null,null,null,"",null,"",""]
[null,null,"",null,null,null,"",null,"",""]
[null,null,"",null,null,null,"",null,"",""]
[null,null,"",null,null,null,"",null,"",""]